[Event "20th Heraklion IT Open 2017"]
[Site "Heraklion"]
[Date "2017.04.23"]
[Round "8"]
[White "Martorelli, Antonio"]
[Black "Stratigi, Evangelia"]
[Result "1-0"]
[ECO "C26"]
[WhiteElo "2220"]
[BlackElo "1662"]
[Annotator "NA RC"]
[PlyCount "95"]
[EventDate "2017.??.??"]
[EventType "swiss"]
[EventCountry "GRE"]
[SourceTitle "playchess.com"]
[Source "ChessBase"]
[SourceQuality "1"]
[TimeControl "40/5400+30:1800+30"]

{[%evp 8,85,28,25,38,32,32,28,88,85,76,81,132,95,32767,32767,32767,32767,181,184,32767,181,200,195,192,172,206,217,213,208,220,212,32767,205,220,218,228,230,207,32767,32767,215,282,266,343,32767,174,162,177,178,32767,237,225,32767,355,344,442,392,377,399,380,360,383,448,401,32767,32767,32767,422,32767,429,477,32767,32767,561,486,510,487,666,810]} 1. e4 {[%emt 0:08:06]} e5 {[%emt 0:00:17]} 2. Nc3 {[%emt 0:00:06]} Nf6 {[%emt 0:00:50]} 3. f4 {[%emt 0:00:07]} d6 {[%emt 0:02:43]} 4. Nf3 {[%emt 0:00:41]} Nc6 {[%emt 0:02:24]} 5. d4 {[%emt 0:02:07]} exd4 {[%emt 0:07:29] C30: King's Gambit Declined} (5... Bg4 6. d5 Nd4 7. Be2 Nxe2 8. Qxe2 c6 9. fxe5 dxe5 10. Bg5 h6 11. Bh4 Bb4 12. Qc4 Bxc3+ 13. Qxc3 {1-0 (49) Zapolskis,A (2377)-Markowski,T (2561) Warsaw 2006}) 6. Nxd4 {[%emt 0:00:09] LiveBook: 3 Games} Bd7 {[%emt 0:06:16]} 7. Be3 {[%emt 0:05:59]} Ng4 $146 {[%emt 0:02:23]} (7... Nxe4 $11 8. Nxe4 Qe7) (7... Qe7 8. Bd3 Ng4 9. Nd5 Nxe3 10. Nxc6 Bxc6 11. Nxe3 Bxe4 12. Bxe4 Qxe4 13. Qe2 {1-0 (29) Kratz,J-Boersma,R Hengelo 2003}) 8. Bg1 {[%emt 0:00:42]} Be7 {[%emt 0:09:03]} 9. Be2 {[%emt 0:00:20]} h5 {[%emt 0:03:52]} 10. Qd2 {[%emt 0:03:18]} Bf6 {[%emt 0:08:29]} 11. O-O-O {[%emt 0:02:53]} Nxd4 {[%emt 0:18:08]} 12. Bxd4 {[%emt 0:00:10]} Bc6 {[%emt 0:01:30]} 13. h3 {[%emt 0:03:58]} Bxd4 {[%emt 0:02:05]} 14. Qxd4 {[%emt 0:01:20]} Nf6 {[%emt 0:00:48] [#]} 15. g4 $1 {[%emt 0:00:25]} ({Much less strong is} 15. e5 $6 dxe5 16. Qxe5+ Qe7 $16) 15... Qe7 {[%emt 0:04:36]} 16. Bf3 {[%emt 0:05:30]} a6 {[%emt 0:02:50]} 17. g5 {[%emt 0:08:44]} Nd7 {[%emt 0:00:34]} 18. Qxg7 {[%emt 0:00:14]} O-O-O {[%emt 0:01:13]} 19. Qd4 {[%emt 0:00:13]} Kb8 {[%emt 0:00:44]} 20. Rhe1 {[%emt 0:02:26]} Rde8 {[%emt 0:05:04]} 21. h4 {[%emt 0:02:17]} Qe6 {[%emt 0:03:40]} 22. Nd5 {[%emt 0:03:17]} Qh3 {[%emt 0:03:31]} 23. Qf2 {[%emt 0:00:58]} Qe6 {[%emt 0:01:26]} 24. Kb1 {[%emt 0:17:40]} Qg6 {[%emt 0:02:45]} 25. Qd4 {[%emt 0:07:41]} Qe6 {[%emt 0:01:30]} 26. Re3 {[%emt 0:04:02]} Bxd5 {[%emt 0:02:57]} 27. Qxd5 {[%emt 0:00:13]} Qxd5 {[%emt 0:03:12]} 28. Rxd5 {[%emt 0:00:01]} Nb6 {[%emt 0:01:14]} 29. Rf5 {[%emt 0:01:06]} Re7 {[%emt 0:00:21]} 30. Rd3 {[%emt 0:05:49]} Rd7 {[%emt 0:01:24]} (30... Ka7 $142 31. a3 Nd7) 31. b3 {[%emt 0:01:19]} c6 {[%emt 0:00:18]} 32. a4 {[%emt 0:01:55]} Rh7 {[%emt 0:00:41]} 33. a5 {[%emt 0:01:22]} Nc8 {[%emt 0:00:05]} 34. e5 {[%emt 0:01:03]} d5 {[%emt 0:01:06]} 35. Rf6 {[%emt 0:00:18]} Kc7 {[%emt 0:00:53]} 36. Bg2 {[%emt 0:01:46]} Ne7 {[%emt 0:00:30]} 37. Rg3 {[%emt 0:02:55]} Ng8 {[%emt 0:00:29]} 38. Bh3 {[%emt 0:01:24]} Nxf6 {[%emt 0:00:37]} 39. gxf6 {[%emt 0:00:06]} Rd8 {[%emt 0:00:11]} 40. Bf5 {[%emt 0:00:00]} Rhh8 {[%emt 0:01:06]} 41. Rg7 {[%emt 0:02:00]} Rdf8 {[%emt 0:04:47]} 42. Be6 {[%emt 0:04:12]} Kb8 {[%emt 0:02:09]} 43. Bxf7 $18 {[%emt 0:00:24]} Rh6 {[%emt 0:04:23]} 44. Rg8 {[%emt 0:00:57]} Rh8 {[%emt 0:00:09]} 45. Rxh8 {[%emt 0:00:21]} Rxh8 {[%emt 0:00:09]} 46. e6 {[%emt 0:00:06]} Kc7 {[%emt 0:00:28]} 47. Bxh5 {[%emt 0:02:59]} Rxh5 {[%emt 0:01:11]} 48. f7 {[%emt 0:00:02]} 1-0

[Event "20th Heraklion IT Open 2017"]
[Site "Heraklion"]
[Date "2017.04.23"]
[Round "8"]
[White "Mamoulakis, Eleftherios"]
[Black "Dhruv Easwar"]
[Result "1-0"]
[ECO "A06"]
[WhiteElo "2117"]
[BlackElo "1753"]
[Annotator "ChessBase"]
[PlyCount "89"]
[EventDate "2017.??.??"]
[EventType "swiss"]
[EventCountry "GRE"]
[SourceTitle "playchess.com"]
[Source "ChessBase"]
[SourceQuality "1"]
[TimeControl "40/5400+30:1800+30"]

1. Nf3 {[%emt 0:00:00]} d5 {[%emt 0:00:20]} 2. g3 {[%emt 0:00:00]} Nf6 {[%emt 0:00:17]} 3. Bg2 {[%emt 0:00:00]} e6 {[%emt 0:00:35]} 4. O-O {[%emt 0:00:12]} Be7 {[%emt 0:00:15]} 5. d3 {[%emt 0:00:14]} O-O {[%emt 0:01:08]} 6. Nbd2 {[%emt 0:00:05]} b6 {[%emt 0:00:44]} 7. c3 {[%emt 0:01:27]} Bb7 {[%emt 0:00:36]} 8. Qc2 {[%emt 0:00:13]} c5 {[%emt 0:01:53]} 9. Re1 {[%emt 0:01:05]} Nbd7 {[%emt 0:01:41]} 10. e4 {[%emt 0:01:50]} Qc7 {[%emt 0:00:44]} 11. exd5 {[%emt 0:07:01]} Nxd5 {[%emt 0:01:15]} 12. Nc4 {[%emt 0:02:00]} Rfd8 {[%emt 0:02:24]} 13. a4 {[%emt 0:01:34]} Bf6 {[%emt 0:07:49]} 14. Bg5 {[%emt 0:07:43]} Bxg5 {[%emt 0:04:13]} 15. Nxg5 {[%emt 0:00:09]} h6 {[%emt 0:01:04]} 16. Ne4 {[%emt 0:01:03]} N7f6 {[%emt 0:01:31]} 17. a5 {[%emt 0:01:58]} Nxe4 {[%emt 0:05:29]} 18. dxe4 {[%emt 0:00:49]} Nf6 {[%emt 0:01:21]} 19. axb6 {[%emt 0:03:21]} axb6 {[%emt 0:00:23]} 20. e5 {[%emt 0:08:29]} Ne8 {[%emt 0:02:40]} 21. Rxa8 Bxa8 {[%emt 0:01:42]} 22. Bxa8 {[%emt 0:06:26]} Rxa8 {[%emt 0:00:46]} 23. Qb3 {[%emt 0:00:28]} Rb8 {[%emt 0:01:08]} 24. Qb5 {[%emt 0:00:40]} Qb7 {[%emt 0:02:19]} 25. Ra1 {[%emt 0:08:02]} Nc7 {[%emt 0:00:54]} 26. Qd7 {[%emt 0:00:20]} Nd5 {[%emt 0:01:50]} 27. Qxb7 {[%emt 0:03:59]} Rxb7 {[%emt 0:00:19]} 28. Ra8+ {[%emt 0:00:21]} Kh7 {[%emt 0:00:17]} 29. Nd6 {[%emt 0:00:09]} Rd7 {[%emt 0:00:33]} 30. Rb8 {[%emt 0:00:41]} Rc7 {[%emt 0:02:59]} 31. c4 {[%emt 0:03:07]} Nb4 {[%emt 0:00:46]} 32. Rxb6 {[%emt 0:00:21]} Nd3 {[%emt 0:00:08]} 33. f4 {[%emt 0:01:32]} Kg6 {[%emt 0:00:53]} 34. Kf1 {[%emt 0:06:43]} Ra7 {[%emt 0:00:20]} 35. Ke2 {[%emt 0:02:16]} Nb4 {[%emt 0:00:15]} 36. Rxb4 {[%emt 0:12:34]} cxb4 {[%emt 0:00:17]} 37. Kd3 {[%emt 0:00:15]} Kh5 {[%emt 0:00:34]} 38. h3 {[%emt 0:00:33]} Ra2 {[%emt 0:01:01]} 39. Kc2 {[%emt 0:00:29]} f6 {[%emt 0:00:58]} 40. Kb3 {[%emt 0:00:00]} Ra1 {[%emt 0:00:41]} 41. c5 {[%emt 0:02:46]} Rg1 {[%emt 0:00:22]} 42. c6 {[%emt 0:01:05]} Rxg3+ {[%emt 0:00:10]} 43. Kxb4 {[%emt 0:00:10]} Rg1 {[%emt 0:00:19]} 44. c7 {[%emt 0:00:21]} Rc1 {[%emt 0:00:08]} 45. Nc4 {[%emt 0:00:08]} 1-0

[Event "20th Heraklion IT Open 2017"]
[Site "Heraklion"]
[Date "2017.04.23"]
[Round "8"]
[White "Serpetsidakis, Nikolaos"]
[Black "Kouvidis, Ioannis"]
[Result "1-0"]
[ECO "D05"]
[WhiteElo "1994"]
[BlackElo "1387"]
[Annotator "NA RC"]
[PlyCount "87"]
[EventDate "2017.??.??"]
[EventType "swiss"]
[EventCountry "GRE"]
[SourceTitle "playchess.com"]
[Source "ChessBase"]
[SourceQuality "1"]
[TimeControl "40/5400+30:1800+30"]

{[%evp 8,84,-1,0,32767,32767,9,14,32767,0,32767,32767,10,-1,-7,-24,32767,-16,0,-16,32767,32767,32767,32767,32767,32767,32767,32767,-7,32767,32767,32767,32767,32767,-4,-91,32767,-28,-16,-57,32767,-155,32767,32767,-177,-160,-141,32767,-139,32767,-116,32767,0,-79,32767,-97,-72,32767,100,-6,32767,-41,141,93,978,894,32767,477,32767,32767,32767,32767,198,198,206,187,32767,160,29997]} 1. d4 {[%emt 0:03:39]} Nf6 {[%emt 0:00:17]} 2. Nf3 {[%emt 0:00:45]} e6 {[%emt 0:00:16]} 3. e3 {[%emt 0:00:48]} d5 {[%emt 0:02:50]} 4. Bd3 {[%emt 0:00:37]} b6 {[%emt 0:00:13]} 5. O-O {[%emt 0:00:04]} Bb7 {[%emt 0:01:17]} 6. b3 {[%emt 0:00:06]} Be7 {[%emt 0:00:50]} 7. Bb2 {[%emt 0:00:04]} O-O {[%emt 0:00:36]} 8. Ne5 {[%emt 0:00:04]} c5 {[%emt 0:03:02]} 9. Nd2 {[%emt 0:00:33]} Nc6 {[%emt 0:00:59]} 10. a3 {[%emt 0:03:50]} cxd4 {[%emt 0:03:16]} 11. exd4 {[%emt 0:00:33]} Nxe5 {[%emt 0:00:13]} 12. dxe5 {[%emt 0:00:08] LiveBook: 5 Games} Nd7 {[%emt 0:00:10]} 13. Qg4 {[%emt 0:12:08]} Nc5 {[%emt 0:09:56]} 14. b4 {[%emt 0:09:24]} Nxd3 {[%emt 0:07:51]} 15. cxd3 {[%emt 0:00:06]} a5 {[%emt 0:02:41]} 16. b5 {[%emt 0:07:14]} Rc8 {[%emt 0:01:33]} 17. Qa4 {[%emt 0:02:23]} Qd7 {[%emt 0:02:18]} 18. Rab1 {[%emt 0:05:49]} Rc7 {[%emt 0:04:28]} 19. Qb3 {[%emt 0:03:11]} Rfc8 {[%emt 0:00:55]} 20. Nf3 {[%emt 0:02:14] [#]} h6 {[%emt 0:03:54]} (20... d4 $1 $17 {[%mdl 512] And now ...Rc3! would win.} 21. Nxd4 (21. Bxd4 Bxf3) 21... Bc5) 21. h3 {[%emt 0:02:57]} (21. Nd4 $11) 21... Bc5 {[%emt 0:10:49]} 22. d4 {[%emt 0:04:16]} Be7 {[%emt 0:01:00]} 23. Nd2 {[%emt 0:00:53]} Rc2 {[%emt 0:03:07]} 24. Qd3 {[%emt 0:01:19]} ({White should play} 24. Rfd1 $15) 24... Bxa3 {[%emt 0:01:30]} 25. Qxa3 {[%emt 0:01:53]} Rxd2 {[%emt 0:00:18]} 26. Qg3 {[%emt 0:06:24]} Rdc2 {[%emt 0:00:59]} 27. Bc1 {[%emt 0:00:05]} Kh8 {[%emt 0:01:04]} 28. Be3 $11 {[%emt 0:00:49]} R8c4 {[%emt 0:08:12]} 29. Qh4 {[%emt 0:00:20]} Rc8 $2 {[%emt 0:02:36]} (29... Kh7 $17 {Hoping for ...a4.} 30. Qg4 Qc7) 30. g4 {[%emt 0:03:02]} Qd8 {[%emt 0:00:11]} 31. Qh5 {[%emt 0:00:27]} Kg8 {[%emt 0:00:43]} 32. g5 {[%emt 0:04:32]} hxg5 $2 {[%emt 0:01:06]} (32... g6 $1 $15 {keeps the upper hand.} 33. Qxh6 R8c3) 33. Bxg5 {[%emt 0:00:08]} Qf8 {[%emt 0:00:11] [#]} 34. Qh4 $2 {[%emt 0:00:21]} ({White has to play} 34. Bf6 $1 $18 {[%mdl 512] Black must now prevent Kh1.} R8c3 (34... gxf6 35. Kh1) 35. Kh2) 34... Re2 $2 {[%emt 0:02:30] [#]} (34... Qa3 $1 $11 35. Bd8 a4 36. Bxb6 Qc3) 35. Be7 $2 {[%emt 0:10:19]} (35. Rb3 $1 $18 {Be7 is the strong threat.} Rc4 {[#]} 36. Bf6 $1 {[%mdl 512]}) 35... Qe8 {[%emt 0:02:13]} (35... Re4 $142) 36. Rb3 {[%emt 0:00:24]} Re4 {[%emt 0:00:58]} 37. Qg5 {[%emt 0:00:13]} g6 {[%emt 0:02:04]} 38. Bf6 {[%emt 0:00:25]} Qf8 {[%emt 0:01:25]} 39. f4 {[%emt 0:00:05]} Kh7 {[%emt 0:00:10]} 40. Rg3 {[%emt 0:00:00]} Qh6 {[%emt 0:08:23]} ({Worse is} 40... Rxd4 41. Rg4 Rxf4 42. Qxf4 g5 43. Qxg5 Qc5+ 44. Kh1 d4+ {[#]} 45. Rg2 $1 {[%mdl 512]} Bxg2+ 46. Kh2 (46. Qxg2 Qd5 47. Qxd5 exd5 $16) 46... Qf8 47. Qh5+ (47. Kxg2 Qh6 48. Qxh6+ Kxh6 $16) 47... Qh6 48. Qxf7+ Qg7 49. Qxg7#) 41. Rg4 {[%emt 0:31:23]} Qxg5 {[%emt 0:00:09]} 42. Bxg5 {[%emt 0:00:04]} Rg8 {[%emt 0:02:14]} ({Worse is} 42... Rxd4 43. Rh4+ Kg7 44. Bf6+ Kg8 45. Rh8#) (42... f5 $18 43. exf6 Kg8) 43. Rh4+ {[%emt 0:00:27]} Kg7 {[%emt 0:00:18]} 44. Bh6+ {[%emt 0:00:03]} 1-0

[Event "20th Heraklion IT Open 2017"]
[Site "Heraklion"]
[Date "2017.04.23"]
[Round "8"]
[White "Maris, Ioannis"]
[Black "Moshovakis, Aggelos"]
[Result "0-1"]
[ECO "C54"]
[WhiteElo "1967"]
[BlackElo "2030"]
[Annotator "NA RC"]
[PlyCount "74"]
[EventDate "2017.??.??"]
[EventType "swiss"]
[EventCountry "GRE"]
[SourceTitle "playchess.com"]
[Source "ChessBase"]
[SourceQuality "1"]
[TimeControl "40/5400+30:1800+30"]

{[%evp 8,74,0,33,20,7,20,0,23,28,16,22,48,32767,29,32767,32767,32767,32767,24,17,32767,32767,32767,32767,32767,25,30,69,29,39,-30,0,-5,0,32767,-5,-10,0,-3,32767,0,8,16,52,0,32767,0,11,-16,0,32767,-12,-15,32767,32767,32767,32767,-279,-265,-276,-238,32767,32767,32767,-620,-668,32767,-623]} 1. e4 {[%emt 0:00:00]} e5 {[%emt 0:00:03]} 2. Nf3 {[%emt 0:00:26]} Nc6 {[%emt 0:00:04]} 3. Bc4 {[%emt 0:00:52]} Bc5 {[%emt 0:00:06]} 4. c3 {[%emt 0:01:19]} Nf6 {[%emt 0:00:09]} 5. d3 {[%emt 0:05:35]} O-O {[%emt 0:00:09]} ({But not} 5... d5 6. exd5 Nxd5 7. Qb3 $16) 6. b4 {[%emt 0:06:40]} Bb6 {[%emt 0:00:04]} 7. Bg5 {[%emt 0:01:41] LiveBook: 4 Games} h6 {[%emt 0:01:18]} 8. Bh4 {[%emt 0:00:54]} d6 {[%emt 0:01:01]} 9. Nbd2 {[%emt 0:05:10]} Be6 {[%emt 0:02:45]} 10. Qb3 {[%emt 0:04:45]} Qe7 {[%emt 0:01:13]} 11. a4 {[%emt 0:03:25]} a5 {[%emt 0:05:50]} 12. b5 {[%emt 0:00:45]} Nb8 {[%emt 0:00:05]} 13. O-O {[%emt 0:05:51]} Nbd7 {[%emt 0:00:33]} 14. Rad1 {[%emt 0:03:15]} c6 {[%emt 0:08:35]} 15. Bxf6 {[%emt 0:11:31]} Qxf6 {[%emt 0:00:21]} 16. d4 {[%emt 0:00:23]} exd4 {[%emt 0:46:43]} 17. cxd4 {[%emt 0:00:57]} Qg6 {[%emt 0:05:39]} 18. bxc6 {[%emt 0:09:12]} bxc6 {[%emt 0:00:08]} 19. d5 {[%emt 0:04:58]} (19. Bxe6 $14 Qxe6 20. Rb1) 19... cxd5 {[%emt 0:00:15]} ({But not} 19... Bh3 $2 20. Nh4 Qg4 21. Qxh3 $18) 20. exd5 {[%emt 0:06:05]} Bg4 {[%emt 0:00:11]} 21. h3 {[%emt 0:00:34]} Bxf3 {[%emt 0:01:58]} ({Don't capture} 21... Bxh3 $2 22. Nh4 Qg4 23. Qxh3 $18) 22. Nxf3 {[%emt 0:00:15]} Rab8 {[%emt 0:00:09]} 23. Bb5 {[%emt 0:01:13]} Bc5 {[%emt 0:01:34]} 24. Nd4 {[%emt 0:03:17]} Bxd4 {[%emt 0:02:52]} 25. Rxd4 {[%emt 0:00:38]} Rfc8 {[%emt 0:00:33]} 26. Rg4 {[%emt 0:03:21]} Qf6 {[%emt 0:00:36]} 27. Qd1 {[%emt 0:02:25]} Ne5 {[%emt 0:00:30]} 28. Re4 {[%emt 0:00:49]} Qf5 {[%emt 0:00:49]} 29. Qe2 {[%emt 0:00:01]} Rc5 {[%emt 0:00:51]} 30. f4 {[%emt 0:03:36]} Ng6 {[%emt 0:00:07]} 31. Bc6 {[%emt 0:00:08]} Qf6 {[%emt 0:01:24]} 32. Kh1 {[%emt 0:01:48]} Rb2 {[%emt 0:00:21]} 33. Re8+ {[%emt 0:06:17]} Kh7 {[%emt 0:00:08]} 34. Qe4 {[%emt 0:01:55]} Rcc2 {[%emt 0:00:32]} 35. f5 {[%emt 0:01:35]} Nh4 {[%emt 0:00:51]} 36. Rg1 {[%emt 0:03:00]} Nxg2 {[%emt 0:03:14]} ({Weaker is} 36... Nxf5 37. Bd7 Rf2 38. Ra8 $17) 37. Rb8 {[%emt 0:01:47]} Re2 $19 {[%emt 0:00:59]} (37... Nh4 $142 38. Rxg7+ Kxg7 39. Qg4+ Ng6 40. Rxb2 Qxb2 41. Qg1 Qe5 42. f6+ Qxf6 43. Qg2 Rxg2 44. Kxg2 Nh4+ 45. Kg3 Qf3+ 46. Kxh4 Qf4+ 47. Kh5 Qg5#) 0-1

[Event "20th Heraklion IT Open 2017"]
[Site "Heraklion"]
[Date "2017.04.23"]
[Round "8"]
[White "Lampadariou, Nikolaos"]
[Black "Lirindzakis, Timotheos"]
[Result "0-1"]
[ECO "E14"]
[WhiteElo "1948"]
[BlackElo "2177"]
[Annotator "RC"]
[PlyCount "46"]
[EventDate "2017.??.??"]
[EventType "swiss"]
[EventCountry "GRE"]
[SourceTitle "playchess.com"]
[Source "ChessBase"]
[SourceQuality "1"]
[TimeControl "40/5400+30:1800+30"]

1. d4 {[%emt 0:00:00]} Nf6 {[%emt 0:00:24]} 2. c4 {[%emt 0:00:00]} e6 {[%emt 0:00:06]} 3. Nf3 {[%emt 0:00:11]} b6 {[%emt 0:00:28]} 4. e3 {[%emt 0:04:16]} Bb7 {[%emt 0:01:55]} 5. Be2 {[%emt 0:00:37]} d5 {[%emt 0:01:00]} 6. O-O {[%emt 0:00:43]} Bd6 {[%emt 0:02:59]} 7. Nc3 O-O 8. b3 {[%emt 0:05:36]} Nbd7 {[%emt 0:04:05]} 9. Bb2 {[%emt 0:05:06]} a6 {[%emt 0:03:51]} 10. Nd2 {[%emt 0:06:52]} c5 {[%emt 0:08:16]} 11. cxd5 {[%emt 0:06:56]} cxd4 {[%emt 0:04:46]} 12. Nce4 {[%emt 0:02:35]} Nxe4 {[%emt 0:04:23]} 13. Nxe4 {[%emt 0:04:21]} Bxh2+ {[%emt 0:02:07]} 14. Kxh2 {[%emt 0:00:14]} Qh4+ {[%emt 0:00:03]} 15. Kg1 {[%emt 0:00:06]} Qxe4 {[%emt 0:00:18]} 16. Bf3 {[%emt 0:01:37]} Qg6 {[%emt 0:00:33]} 17. Qxd4 {[%emt 0:11:02]} Nc5 {[%emt 0:26:05]} 18. e4 {[%emt 0:10:07]} f5 {[%emt 0:06:07]} 19. b4 {[%emt 0:13:19]} e5 {[%emt 0:06:32]} 20. Qxe5 {[%emt 0:12:21]} Nd3 {[%emt 0:00:06]} 21. Qd4 {[%emt 0:00:17]} Nxb2 {[%emt 0:01:21]} 22. exf5 {[%emt 0:02:50]} Rxf5 {[%emt 0:01:27]} 23. Be4 {[%emt 0:00:09]} Qf6 {[%emt 0:00:08]} 0-1

[Event "20th Heraklion IT Open 2017"]
[Site "Heraklion"]
[Date "2017.04.23"]
[Round "8"]
[White "Bras, Emanouel"]
[Black "Vitsaxakis, Nikolaos"]
[Result "0-1"]
[ECO "D94"]
[WhiteElo "1898"]
[BlackElo "1726"]
[Annotator "NA"]
[PlyCount "102"]
[EventDate "2017.??.??"]
[EventType "swiss"]
[EventCountry "GRE"]
[SourceTitle "playchess.com"]
[Source "ChessBase"]
[SourceQuality "1"]
[TimeControl "40/5400+30:1800+30"]

{[%evp 9,102,0,1,32767,22,-8,-14,10,-14,32767,0,32767,0,32767,32767,32767,32767,-10,32767,32767,0,0,24,-20,32767,10,51,30,32767,60,77,62,73,76,79,32767,86,32767,32767,41,39,46,37,31,38,43,32767,32767,32767,14,13,-14,48,17,29,22,16,-124,32767,-382,-461,-439,-32,-77,32767,-62,32767,32767,-65,32767,-82,-122,-85,-366,-277,-243,32767,32767,32767,32767,32767,-626,-487,32767,-476,32767,-150,-157,32767,-95,32767,32767,32767,32767,-530]} 1. d4 {[%emt 0:00:00]} Nf6 {[%emt 0:00:05]} 2. c4 {[%emt 0:00:00]} g6 {[%emt 0:00:04]} 3. Nc3 {[%emt 0:00:33]} d5 {[%emt 0:00:04]} 4. Nf3 {[%emt 0:01:43]} Bg7 {[%emt 0:00:07]} 5. e3 {[%emt 0:00:21]} O-O {[%emt 0:00:21]} 6. h3 {[%emt 0:01:30] LiveBook: 20 Games} b6 {[%emt 0:04:03] D94: Grünfeld: 4 Nf3 Bg7 5 e3} (6... c5 7. cxd5 cxd4 8. exd4 Nxd5 9. Be2 Nc6 10. O-O Be6 11. Ne4 Bf5 12. Ng3 Be6 13. Qa4 Nb6 14. Qa3 Bd5 15. Rd1 Bxf3 16. Bxf3 Nxd4 17. Bg5 Nc4 18. Qb4 {½-½ (39) Pakleza,Z (2499)-Antoniewski,R (2540) Czech Republic 2016}) 7. cxd5 {[%emt 0:02:16]} Nxd5 {[%emt 0:01:35]} 8. Bc4 {[%emt 0:01:38]} Bb7 {[%emt 0:02:47]} 9. O-O {[%emt 0:00:54]} c5 $146 {[%emt 0:01:57]} (9... e6 10. Re1 Na6 11. a3 c5 12. Bxa6 Bxa6 13. Nxd5 exd5 14. b3 {0-1 (83) Szeman,T (1806)-Kemendi,D (1847) Hungary 2014}) 10. Bxd5 {[%emt 0:05:15]} Bxd5 {[%emt 0:01:03]} 11. dxc5 {[%emt 0:08:18]} Bc4 {[%emt 0:09:35]} 12. cxb6 {[%emt 0:00:33]} Qxb6 {[%emt 0:01:49]} 13. Re1 {[%emt 0:04:05]} ({Much weaker is} 13. Nd5 Qb7 14. e4 e6 $17) 13... Rd8 {[%emt 0:05:31]} 14. Bd2 {[%emt 0:00:42]} Na6 {[%emt 0:28:02]} 15. Qa4 {[%emt 0:05:03]} Rac8 {[%emt 0:03:00]} 16. Ne4 {[%emt 0:03:16]} Qb7 {[%emt 0:08:52]} 17. Ba5 $1 {[%emt 0:07:21]} Bb5 {[%emt 0:12:30]} ({Reject} 17... Bxb2 $6 18. Bxd8 Bxa1 19. Qe8+ (19. Rxa1 Qxe4 20. Qd7 Qe6 21. Qxe6 Bxe6 22. Bxe7 Re8 $16) 19... Kg7 20. Qxe7 (20. Rxa1 Qxe4 21. Qxe7 Qxe7 22. Bxe7 Nc7 $16) (20. Nfd2 Bd5 $16) 20... Qxe7 21. Bxe7 $16) 18. Qb3 {[%emt 0:03:34]} Rd3 {[%emt 0:00:34]} 19. Nc3 {[%emt 0:00:26]} Bc6 {[%emt 0:01:50]} 20. Qxb7 {[%emt 0:01:16]} Bxb7 {[%emt 0:00:02]} 21. Rad1 {[%emt 0:04:02]} Rxd1 {[%emt 0:05:34]} 22. Rxd1 {[%emt 0:02:17]} Nc5 {[%emt 0:02:12]} 23. Nb5 {[%emt 0:03:53]} a6 {[%emt 0:02:20]} 24. Nbd4 {[%emt 0:03:12]} e5 {[%emt 0:00:08]} 25. Ne2 {[%emt 0:08:57]} e4 {[%emt 0:00:46]} 26. Nfd4 {[%emt 0:03:02]} Nd3 {[%emt 0:00:23]} 27. Bc3 {[%emt 0:03:54]} Bd5 {[%emt 0:00:55]} 28. a3 {[%emt 0:04:05]} Bc4 {[%emt 0:02:34]} 29. Ng3 {[%emt 0:02:18]} f5 {[%emt 0:00:25]} 30. Nf1 {[%emt 0:01:06]} f4 {[%emt 0:03:01]} (30... Bxd4 $11 31. exd4 (31. Bxd4 Bb3 32. Rb1 Rc2 $15) 31... h5) 31. Nd2 {[%emt 0:05:01]} fxe3 {[%emt 0:00:07]} 32. fxe3 {[%emt 0:00:31]} ({Not} 32. Nxe4 $2 Bxd4 33. fxe3 Bxe3+ 34. Kh2 Nc5 35. Nf6+ Kf7 $19) 32... Bd5 {[%emt 0:00:39]} 33. Rf1 {[%emt 0:04:13]} (33. Nf1 $11) 33... Bh6 {[%emt 0:00:26]} 34. Nc2 $2 {[%emt 0:00:26] [#]} (34. Kh2 $17) 34... Nxb2 $1 {[%emt 0:01:10]} 35. Nb4 {[%emt 0:02:56]} Rxc3 $2 {[%emt 0:01:14]} (35... Bxe3+ $19 36. Kh2 Rxc3 37. Nxd5 Bxd2 38. Nxc3 Bxc3) 36. Nxd5 {[%emt 0:00:42]} Bxe3+ {[%emt 0:00:32]} 37. Nxe3 {[%emt 0:00:33]} Rxe3 {[%emt 0:00:01]} 38. Rb1 {[%emt 0:01:15]} Nd3 {[%emt 0:00:31]} 39. Nc4 {[%emt 0:02:07]} Re2 {[%emt 0:00:29]} 40. Rb8+ {[%emt 0:00:00]} Kg7 {[%emt 0:00:09]} 41. Nd6 $2 {[%emt 0:08:26]} (41. Re8 $17) 41... e3 {[%emt 0:11:17]} 42. Rb7+ {[%emt 0:03:41]} Kf6 {[%emt 0:02:11]} 43. Rb3 {[%emt 0:00:47]} Re1+ {[%emt 0:01:21]} 44. Kh2 {[%emt 0:00:23]} e2 {[%emt 0:06:50]} 45. Rxd3 {[%emt 0:03:47]} Rd1 {[%emt 0:01:24]} 46. Ne4+ {[%emt 0:17:15]} Kg7 {[%emt 0:03:58]} 47. Nf2 {[%emt 0:00:13]} Rf1 $2 {[%emt 0:02:21]} (47... e1=Q $19 48. Nxd1 Qe2) 48. Rd7+ {[%emt 0:00:30]} Kf8 {[%emt 0:00:02]} 49. Nd3 {[%emt 0:00:38]} Rd1 {[%emt 0:00:07]} 50. Rd8+ {[%emt 0:02:05]} Ke7 {[%emt 0:00:18]} 51. Rd5 {[%emt 0:03:55]} e1=Q $19 {[%emt 0:00:21]} 0-1